bitfinex-derivatives/quotes_ETHF0:USTF0_20241228
["timestamp","ask_amount","ask_price","bid_price","bid_amount"]
[1735389670009,3.20980439,3361.7,3361.5,0.29798]
[1735389670204,0.00200439,3361.7,3361.6,0.29797]
[1735389671014,0.00200439,3361.7,3361.6,0.76557]
[1735389681918,0.00200439,3361.7,3361.3,44.0078]
[1735389682124,0.29996439,3361.7,3361.5,0.29797]
[1735389682320,0.4418,3361.6,3361.5,0.29797]
[1735389682822,0.4418,3361.6,3361.3,44.0078]
[1735389682823,0.9068,3361.6,3361.4,0.29798]
[1735389687127,1.20477,3361.6,3361.3,44.30578]
[1735389687315,0.9068,3361.6,3361.4,0.29798]
[1735389689428,0.9068,3361.6,3361.5,0.29798]
[1735389691728,0.9068,3361.6,3361.4,0.29798]
[1735389692430,0.9068,3361.6,3361.5,0.29798]
[1735389692632,0.9068,3361.6,3361.4,0.29798]
[1735389693324,0.9068,3361.6,3361.5,0.29798]
[1735389694829,0.9068,3361.6,3361.5,0.67058149]
[1735389695132,0.9068,3361.6,3361.5,0.29798]
[1735389695723,0.9068,3361.6,3361.5,1.04277368]
[1735389699434,0.9068,3361.6,3361.5,1.41536736]
[1735389699628,0.9068,3361.6,3361.5,5.71575392]
[1735389699828,0.9068,3361.6,3361.5,6.08834738]
[1735389700132,0.00200439,3361.7,3361.6,0.29797]
[1735389700331,0.00200439,3361.7,3361.6,1.09456346]
[1735389700928,0.00200439,3361.7,3361.6,1.0945308]
[1735389701128,0.00200439,3361.7,3361.6,14.23753817]
[1735389702330,0.00200439,3361.7,3361.6,13.44097737]
[1735389702526,0.00200439,3361.7,3361.6,13.14300737]
[1735389702731,0.29996439,3361.7,3361.6,13.14300737]
[1735389703133,0.29996439,3361.7,3361.6,6.13353701]
[1735389704137,0.29996439,3361.7,3361.6,4.68936522]
[1735389704440,3.50776439,3361.7,3361.6,4.68936522]
[1735389704738,3.50776439,3361.7,3361.5,4.68936522]
[1735389704938,0.913,3361.6,3361.5,4.68936522]
[1735389705144,1.3674,3361.6,3361.5,4.68936522]
[1735389705348,1.3674,3361.6,3361.5,4.98734522]
[1735389706348,1.3674,3361.6,3361.5,4.68936522]
[1735389706547,1.66537,3361.6,3361.5,4.68936522]
[1735389707043,1.66537,3361.6,3361.4,7.00947036]
[1735389707044,0.29798,3361.5,3361.4,7.00947036]
[1735389707251,0.29798,3361.4,3361.3,7.00947036]
[1735389707552,1.04277368,3361.4,3361.3,7.00947036]
[1735389708540,1.04277368,3361.4,3361.1,9.64397048]
[1735389708541,0.74479368,3361.4,3361.1,0.29801]
[1735389708748,0.298,3361.2,3361.1,0.29801]
[1735389709543,0.29801,3361.1,3361.0,0.29801]
[1735389710348,0.74111,3361.2,3361.1,0.29801]
[1735389711444,3.2078,3361.3,3361.2,0.298]
[1735389711644,3.2078,3361.3,3361.2,0.7615]
[1735389711845,3.2078,3361.3,3361.2,1.2305]
[1735389712152,3.2078,3361.3,3361.2,42.40311204]
[1735389712351,3.2078,3361.3,3361.2,42.40311896]
[1735389713350,0.00200439,3361.7,3361.6,0.29797]
[1735389714752,0.00200439,3361.7,3361.4,47.80947036]
[1735389715050,0.29798,3361.5,3361.4,47.80947036]
[1735389715746,0.29798,3361.5,3361.4,40.8]
[1735389716449,0.29797,3361.6,3361.4,40.8]
[1735389716641,0.437,3361.5,3361.2,2.4025]
[1735389716950,0.73498,3361.5,3361.2,2.4025]
[1735389717149,0.73498,3361.5,3361.2,2.1045]
[1735389717150,0.29799,3361.3,3361.2,2.1045]
[1735389717343,0.4645,3361.4,3361.2,2.1045]
[1735389718149,0.76249,3361.4,3361.2,2.1045]
[1735389718345,0.76249,3361.4,3361.2,2.4025]
[1735389718551,0.4645,3361.4,3361.2,2.1045]
[1735389718748,0.4645,3361.4,3361.3,0.29799]
[1735389718946,0.76249,3361.4,3361.2,2.1045]
[1735389719253,0.76249,3361.4,3361.2,1.641]
[1735389719254,0.29799,3361.3,3361.2,1.641]
[1735389719445,0.4645,3361.4,3361.2,1.641]
[1735389719649,0.76249,3361.4,3361.2,1.641]
[1735389720048,0.29799,3361.3,3361.2,1.641]
[1735389720252,0.76249,3361.4,3361.2,1.641]
[1735389720551,0.29799,3361.3,3361.2,0.469]
[1735389721751,0.29801,3361.2,3361.0,40.8]
[1735389722149,0.29801,3361.1,3361.0,41.2454]
[1735389722350,0.29801,3361.1,3361.0,0.4454]
[1735389723057,0.298,3361.3,3361.0,0.4454]
[1735389723655,0.298,3361.3,3361.0,0.74342]
[1735389723952,3.20980439,3361.7,3361.6,0.29797]
[1735389724557,3.20980439,3361.7,3361.6,41.09797]
[1735389725852,3.20980439,3361.7,3361.6,0.29797]
[1735389726052,0.29996439,3361.7,3361.5,0.29797]
[1735389726251,0.29996439,3361.7,3361.5,41.09797]
[1735389726454,0.29996439,3361.7,3361.6,0.4288]
[1735389726647,0.00200439,3361.7,3361.5,40.8]
[1735389726857,0.00200439,3361.7,3361.3,0.72679]
[1735389727045,0.29797,3361.6,3361.4,0.29798]
[1735389727250,0.29797,3361.6,3361.5,0.29798]
[1735389728151,0.00200439,3361.7,3361.4,41.2482]
[1735389728457,0.00200439,3361.7,3361.6,0.29797]
[1735389732756,3.50573,3362.1,3361.9,0.29794]
[1735389732757,3.2078,3362.1,3361.9,0.29794]
[1735389733059,3.2078,3362.1,3362.0,0.862]
[1735389733258,3.2078,3362.1,3362.0,1.15993]
[1735389733458,3.2078,3362.1,3361.5,7.00947036]
[1735389733760,3.2078,3362.1,3361.6,0.862]
[1735389734059,0.29795,3361.9,3361.6,0.862]
[1735389734259,0.4662,3362.0,3361.6,6.88487885]
[1735389734458,0.29794,3361.9,3361.6,7.18283885]
[1735389734760,0.29794,3361.9,3361.6,6.88487885]
[1735389734958,0.29795,3361.8,3361.6,6.88487885]
[1735389735158,0.4662,3362.0,3361.6,6.88487885]
[1735389735363,0.29796,3361.7,3361.6,0.862]
[1735389738662,0.29795,3361.8,3361.6,0.862]
[1735389739755,0.29795,3361.9,3361.6,1.15997]
[1735389740057,3.674,3362.0,3361.6,0.862]
[1735389740257,0.29795,3361.8,3361.6,0.862]
[1735389740557,0.29795,3361.8,3361.6,1.15997]
[1735389741166,0.29794,3361.9,3361.6,1.15997]
[1735389741461,0.29795,3361.8,3361.6,1.15997]
[1735389743263,0.4662,3362.0,3361.6,1.15997]
[1735389743461,0.29794,3362.0,3361.7,0.29795]
[1735389744467,3.2078,3362.2,3361.7,0.29795]
[1735389744767,0.29795,3361.8,3361.6,1.15996]
[1735389745065,0.29797,3361.6,3361.5,0.4639]
[1735389745460,0.99692,3362.1,3361.5,0.4639]
[1735389745661,0.29797,3361.6,3361.5,0.4639]
[1735389745860,0.29796,3361.7,3361.5,0.4639]
[1735389746469,0.29797,3361.6,3361.5,0.4639]
[1735389748173,3.2078,3362.0,3361.5,0.4639]
[1735389748365,0.29796,3361.8,3361.5,0.76187]
[1735389750075,0.29795,3361.8,3361.5,0.76187]
[1735389751076,0.29795,3361.8,3361.6,0.29797]
[1735389751374,0.29795,3361.8,3361.5,0.4639]
[1735389751580,0.29797,3361.6,3361.5,0.4639]
[1735389751767,0.29796,3361.7,3361.5,0.4639]
[1735389752772,0.29797,3361.6,3361.5,0.4639]
[1735389754372,3.95264,3362.0,3361.3,40.8]
[1735389754574,0.29798,3361.5,3361.3,40.8]
[1735389754871,0.29798,3361.5,3361.3,41.09799]
[1735389755070,3.95264,3362.0,3361.3,41.09799]
[1735389755372,0.29797,3361.6,3361.4,0.29798]
[1735389756268,3.2078,3361.9,3361.4,0.29798]
[1735389756464,0.29798,3361.5,3361.3,41.09799]
[1735389756776,0.29799,3361.3,3361.2,0.7371]
[1735389756971,0.29799,3361.3,3361.2,1.10973066]
[1735389757177,0.29799,3361.3,3361.2,41.5371]
[1735389757677,0.298,3361.2,3361.1,7.00947036]
[1735389757873,4.3849,3361.2,3361.1,7.00947036]
[1735389758173,0.29801,3361.1,3361.0,7.43247036]
[1735389758367,0.29801,3361.1,3361.0,7.00947036]
[1735389758568,0.55001,3361.1,3361.0,7.00947036]
[1735389759670,0.29804,3360.8,3360.7,40.8]
[1735389760568,0.29806,3360.5,3360.4,3.6519]
[1735389760774,0.74508,3360.9,3360.2,7.00947036]
[1735389760775,4.7818729,3360.8,3360.2,7.00947036]
[1735389760972,0.29808,3360.3,3360.2,7.00947036]
[1735389761380,0.55008,3360.3,3360.2,7.00947036]
[1735389761678,0.55008,3360.3,3360.0,50.14596048]
[1735389761881,0.29811,3360.0,3359.9,0.4441]
[1735389765981,0.29812,3359.9,3359.8,40.8]
[1735389772084,3.50592,3359.9,3359.8,40.8]
[1735389775385,0.29816,3359.4,3359.3,0.8945]
[1735389778595,3.50596,3359.5,3359.4,0.29816]
[1735389778795,3.2078,3359.5,3359.4,0.29816]
[1735389779392,0.29813,3359.8,3359.3,0.8945]
[1735389779593,3.50592,3359.9,3359.8,0.29813]
[1735389779895,3.50592,3359.9,3359.3,0.4494]
[1735389780391,3.50592,3359.9,3359.8,0.29813]
[1735389780592,3.2078,3359.9,3359.3,0.4494]
[1735389780795,0.29814,3359.7,3359.6,0.29814]
[1735389780994,0.29813,3359.8,3359.7,0.29813]
[1735389781892,0.29813,3359.9,3359.8,0.29812]
[1735389783193,3.2078,3360.3,3359.7,0.4461]
[1735389783388,0.29813,3359.8,3359.7,0.4461]
[1735389787291,0.74973,3359.8,3359.7,0.4461]
[1735389787988,0.4516,3359.8,3358.8,44.0078]
[1735389788191,0.29819,3359.1,3359.0,0.4467]
[1735389788393,3.50599,3359.1,3359.0,0.4467]
[1735389791500,3.2078,3359.1,3359.0,0.7449]
[1735389792101,0.29818,3359.2,3359.1,0.29819]
[1735389792595,0.29818,3359.3,3359.1,0.29818]
[1735389792795,0.29818,3359.3,3359.2,40.8]
[1735389793304,0.29818,3359.3,3359.2,41.09818]
[1735389793504,0.29814,3359.6,3359.4,0.29815]
[1735389793695,0.29814,3359.6,3359.5,0.8813]
[1735389794002,0.29814,3359.6,3359.5,1.3246]
[1735389795802,0.29814,3359.6,3359.5,0.8802]
[1735389795993,0.29814,3359.6,3359.5,0.4433]
[1735389801496,5.6936729,3359.8,3359.2,40.8]
[1735389801700,0.29818,3359.2,3359.1,0.4345]
[1735389801898,3.2078,3359.4,3359.0,0.468]
[1735389802095,1.19249,3359.1,3359.0,0.468]
[1735389807605,0.29822,3358.8,3358.7,1.17302]
[1735389807911,0.29822,3358.8,3358.7,0.8748]
[1735389808509,0.29822,3358.8,3358.7,1.17303]
[1735389808910,0.29822,3358.8,3358.7,0.8748]
[1735389813820,0.29822,3358.8,3358.7,0.4345]
[1735389822135,2.0176729,3358.9,3358.5,0.9062]
[1735389822340,0.29823,3358.6,3358.5,0.9062]
[1735389822833,0.29827,3358.2,3358.1,0.16206586]
[1735389823135,0.29828,3358.1,3358.0,7.41520872]
[1735389823530,0.29828,3358.1,3358.0,0.4235]
[1735389828526,0.29828,3358.1,3358.0,0.72179]
[1735389828733,0.8981,3358.4,3358.0,0.72179]
[1735389828932,4.7818729,3358.6,3358.0,0.4235]
[1735389829243,0.29823,3358.7,3358.6,0.29823]
[1735389830936,0.29824,3358.6,3358.5,0.29824]
[1735389832340,1.5740729,3358.9,3357.9,8.63386678]
[1735389832640,0.29825,3358.5,3358.4,0.29825]
[1735389841040,0.29828,3358.1,3358.0,0.73399]
[1735389841236,0.29828,3358.1,3358.0,0.4357]
[1735389842333,4.7818729,3358.6,3358.0,0.4357]
[1735389842541,0.29828,3358.1,3358.0,0.4357]
[1735389844236,1.5740729,3358.3,3358.0,0.4357]
[1735389844237,0.29827,3358.2,3358.1,0.29827]
[1735389844541,1.5740729,3358.3,3358.1,0.29827]
[1735389844738,4.7818729,3358.6,3358.2,0.4431]
[1735389844942,1.8723129,3358.6,3358.4,0.29825]
[1735389845240,0.29824,3358.6,3358.4,0.29825]
[1735389845435,0.29824,3358.6,3358.5,0.8908]
[1735389846041,1.5740729,3358.6,3358.2,0.4431]
[1735389846239,0.29825,3358.5,3358.4,0.29825]
[1735389847244,1.8723129,3358.6,3358.4,0.29825]
[1735389847445,1.5740729,3358.9,3358.5,0.74354]
[1735389847944,0.29823,3358.6,3358.5,0.74354]
[1735389851946,0.29823,3358.6,3358.5,0.4453]
[1735389854743,0.29823,3358.6,3358.5,0.74354]
[1735389855850,0.29823,3358.6,3358.5,0.4453]
[1735389859049,0.29823,3358.7,3358.6,0.29823]
[1735389860246,1.5740729,3359.2,3358.6,3.2078]
[1735389860550,0.2982,3359.0,3358.9,0.2982]
[1735389862050,0.29819,3359.1,3359.0,0.29819]
[1735389862246,6.98297104,3359.8,3358.7,5.58422678]
[1735389862247,10.19077104,3359.8,3358.7,5.58422678]
[1735389862445,10.19077104,3359.8,3359.0,3.2078]
[1735389862446,11.76484394,3359.8,3359.0,3.2078]
[1735389862652,0.29815,3359.6,3359.5,0.29815]
[1735389863653,0.29816,3359.5,3359.4,0.29816]
[1735389863852,4.7818729,3359.8,3359.2,5.12692678]
[1735389864350,0.29817,3359.4,3359.3,0.29817]
[1735389864655,0.29817,3359.4,3359.2,0.74478]
[1735389866151,0.29817,3359.4,3359.3,0.29817]
[1735389866355,0.29817,3359.4,3359.2,0.4466]
[1735389866550,0.29817,3359.4,3359.2,0.74478]
[1735389866855,0.29816,3359.4,3359.2,0.74478]
[1735389869443,1.5740729,3359.5,3359.3,0.29817]
[1735389869754,1.8722329,3359.5,3359.3,0.29817]
[1735389870649,0.29816,3359.4,3359.3,0.29817]
[1735389872054,0.29816,3359.4,3359.2,0.4466]
[1735389872357,0.29816,3359.4,3359.2,0.74478]
[1735389872548,0.29816,3359.4,3359.3,0.29817]
[1735389877156,1.5740729,3359.5,3359.3,0.29817]
[1735389877455,1.8722329,3359.5,3359.4,0.29816]
[1735389878046,1.5740729,3359.5,3359.2,0.4466]
[1735389878244,0.29817,3359.4,3359.2,0.74477]
[1735389879256,0.29817,3359.4,3359.3,0.29817]
[1735389880057,0.29817,3359.4,3359.3,0.72387]
[1735389883661,1.04410578,3359.4,3359.3,0.72387]
[1735389884864,1.04410578,3359.4,3359.3,0.4257]
[1735389885070,0.29818,3359.2,3359.1,3.2078]
[1735389885369,1.04411578,3359.2,3359.1,3.2078]
[1735389890065,1.79005156,3359.2,3359.1,3.2078]
[1735389890762,1.04411578,3359.2,3359.1,3.2078]
[1735389898471,0.74593578,3359.2,3359.1,3.2078]
[1735389898673,0.74593578,3359.2,3359.1,44.30599]
[1735389899374,2.935,3359.8,3359.1,44.0078]
[1735389899575,0.74593578,3359.4,3359.3,0.29817]
[1735389901675,1.5758515,3359.5,3359.2,0.4509]
[1735389901871,1.5758515,3359.5,3359.4,0.29816]
[1735389902071,1.8740015,3359.5,3359.4,0.29816]
[1735389902375,1.5758515,3359.5,3359.4,0.29816]
[1735389903372,1.8740015,3359.5,3359.4,0.29816]
[1735389904079,0.29816,3359.4,3359.3,0.29817]
[1735389904378,1.8740115,3359.5,3359.3,0.29817]
[1735389905877,0.29817,3359.3,3359.2,5.13122678]
[1735389906075,0.29817,3359.3,3359.2,4.68032678]
[1735389906979,1.20547,3359.3,3359.2,4.68032678]
[1735389907477,0.29818,3359.2,3359.1,3.67]
[1735389907981,0.29818,3359.2,3359.1,3.96819]
[1735389908186,0.29818,3359.3,3359.2,0.29818]
[1735389909681,1.5758515,3359.5,3359.1,3.67]
[1735389909883,0.29818,3359.2,3359.1,8.64851678]
[1735389910783,0.29818,3359.2,3359.1,3.96819]
[1735389911782,0.29818,3359.2,3359.1,0.76039]
[1735389911978,0.29818,3359.2,3359.1,5.14252678]
[1735389912586,1.8740315,3359.2,3359.1,5.14252678]
[1735389914086,0.29818,3359.2,3359.1,0.76039]
[1735389914387,0.29818,3359.2,3359.1,0.4622]
[1735389914883,0.29818,3359.2,3359.1,0.76039]
[1735389915990,1.8740115,3359.5,3359.4,0.29816]
[1735389919191,1.8740115,3359.5,3359.1,5.14252678]
[1735389919395,1.5758515,3359.5,3359.1,5.14252678]
[1735389919692,0.29818,3359.3,3359.2,0.29818]
[1735389920195,0.29818,3359.3,3359.2,4.97850678]
[1735389920497,0.29817,3359.4,3359.3,0.29817]
[1735389921594,0.29817,3359.3,3359.2,4.97850678]
[1735389921797,1.04415549,3359.3,3359.2,4.97850678]
[1735389922292,1.04415549,3359.3,3359.2,4.68032678]
[1735389924594,1.04415549,3359.3,3359.2,6.03840562]
[1735389925397,1.04415549,3359.3,3359.2,6.33658562]
[1735389925802,1.04415549,3359.3,3359.2,0.29818]
[1735389926296,0.4501,3359.5,3359.1,7.45390872]
[1735389926496,0.29816,3359.5,3359.4,0.29816]
[1735389926794,0.29816,3359.5,3359.4,41.09816]
[1735389927295,0.29816,3359.5,3359.4,0.29816]
[1735389927490,0.29816,3359.5,3359.1,7.45390872]
[1735389927696,1.04415549,3359.4,3359.3,0.29817]
[1735389927901,1.04415549,3359.4,3359.3,4.98800877]
[1735389928801,1.04415549,3359.4,3359.3,0.29817]
[1735389929799,0.29817,3359.4,3359.2,4.68983877]
[1735389929993,0.29817,3359.4,3359.3,0.29817]
[1735389934604,5.85609833,3359.7,3359.1,5.15203877]
[1735389934796,0.29815,3359.6,3359.3,0.29817]
[1735389935096,0.29815,3359.6,3359.4,0.4354]
[1735389935291,0.29815,3359.6,3359.4,0.73356]
[1735389935496,0.29815,3359.6,3359.5,0.4487]
[1735389938707,0.29815,3359.6,3359.5,0.74686]
[1735389939704,0.29815,3359.6,3359.5,0.4487]
[1735389940008,0.29815,3359.6,3359.5,0.74686]
[1735389950119,0.29815,3359.6,3359.5,0.4487]
[1735389950611,0.29816,3359.5,3359.4,4.98799877]
[1735389950812,1.04399195,3359.5,3359.4,4.98799877]
[1735389951206,1.04399195,3359.5,3359.4,4.68983877]
[1735389951807,0.29816,3359.4,3359.3,3.2078]
[1735389952002,1.19866,3359.4,3359.3,3.2078]
[1735389952815,1.04399195,3359.5,3359.3,3.2078]
[1735389953017,1.04399195,3359.5,3359.4,0.4538]
[1735389953413,0.74583195,3359.5,3359.4,0.4538]
[1735389953711,0.74583195,3359.5,3359.4,0.75196]
[1735389953914,0.74583195,3359.5,3359.4,5.44179877]
[1735389954713,0.74583195,3359.7,3359.6,0.29814]
[1735389955717,0.74583195,3359.7,3359.6,0.72394]
[1735389956719,1.04397195,3359.7,3359.6,0.72394]
[1735389959516,0.74583195,3359.7,3359.6,0.72394]
[1735389960419,1.04397195,3359.7,3359.6,0.72394]
[1735389961717,6.90007028,3359.7,3359.6,0.72394]
[1735389962415,5.85609833,3359.7,3359.6,0.72394]
[1735389962613,5.85609833,3359.7,3359.6,1.84256678]
[1735389963021,5.85609833,3359.7,3359.6,1.84254537]
[1735389963213,5.85609833,3359.9,3359.6,47.03424414]
[1735389963412,5.85609833,3359.9,3359.8,0.29813]
[1735389963618,5.85609833,3359.9,3359.8,4.62452879]
[1735389963817,4.44829833,3359.9,3359.8,5.05632879]
[1735389964719,0.74583195,3360.5,3359.8,20.04711405]
[1735389964920,0.74583195,3360.5,3360.4,0.29808]
[1735389965121,1.04390195,3360.5,3360.3,3.50588]
[1735389965619,1.04390195,3360.5,3360.4,0.29808]
[1735389965820,0.29807,3360.5,3360.4,0.29808]
[1735389966014,2.03608462,3360.7,3360.3,3.2078]
[1735389966216,2.33414462,3360.7,3360.5,0.29806]
[1735389966914,0.29807,3360.5,3360.4,0.29808]
[1735389967324,0.29806,3360.6,3360.4,0.29808]
[1735389967526,0.29807,3360.5,3360.3,3.50588]
[1735389968522,0.29808,3360.4,3360.3,3.2078]
[1735389968722,1.87286462,3360.4,3360.3,3.2078]
[1735389969020,1.57478462,3360.4,3360.1,4.68886886]
[1735389969217,0.29809,3360.2,3360.1,4.68886886]
[1735389969618,0.4468,3360.2,3359.6,0.29814]
[1735389969818,0.29814,3359.7,3359.6,0.29814]
[1735389970320,1.57478462,3360.1,3359.5,7.89666886]
[1735389970624,0.29814,3359.7,3359.6,0.29815]
[1735389971318,1.57478462,3360.1,3359.5,3.2078]
[1735389971518,0.29815,3359.6,3359.5,3.50595]
[1735389971717,0.29814,3359.7,3359.6,0.29814]
[1735389972516,0.29815,3359.6,3359.5,3.2078]
[1735389972721,0.29817,3359.4,3359.3,4.68886886]
[1735389974120,0.9078,3359.6,3359.2,0.29818]
[1735389974321,0.29818,3359.3,3359.2,0.29818]
[1735389974517,0.29818,3359.3,3359.1,3.50599]
[1735389974722,0.29818,3359.2,3359.1,3.50599]
[1735389975223,0.29818,3359.2,3359.1,3.2078]
[1735389975420,0.29818,3359.2,3359.1,3.50599]
[1735389975822,0.29818,3359.3,3359.1,3.50599]
[1735389976621,0.29816,3359.5,3359.3,0.29817]
[1735389977027,0.9078,3359.6,3359.1,3.2078]
[1735389977318,0.9078,3359.6,3359.2,0.29818]
[1735389977727,0.29817,3359.4,3359.2,0.29818]
[1735389978224,0.9078,3359.6,3359.1,3.2078]
[1735389978617,0.29817,3359.4,3359.2,0.29818]
[1735389979827,2.48258462,3359.6,3359.1,3.2078]
[1735389980020,0.29818,3359.2,3359.1,3.2078]
[1735389981621,0.29812,3360.0,3359.8,0.29813]
[1735389981926,0.4549,3360.0,3359.9,0.29812]
[1735389983731,3.6481,3360.3,3359.6,0.4665]
[1735389984027,0.4549,3360.2,3360.1,0.2981]
[1735389989429,3.2078,3360.5,3360.4,0.29807]
[1735389994630,0.29805,3360.7,3360.5,0.29805]
[1735389994831,0.29805,3360.7,3360.6,0.29805]
[1735389996530,0.29806,3360.5,3360.4,0.29806]
[1735389996725,0.29807,3360.4,3360.3,0.29808]
[1735390004231,0.29807,3360.5,3360.4,0.29806]
[1735390005733,3.2078,3360.7,3360.4,0.29807]
[1735390006031,0.29807,3360.5,3360.4,0.29807]
[1735390019841,0.29807,3360.5,3360.4,0.73917]
[1735390020951,0.29805,3360.6,3360.5,0.29805]
[1735390021846,0.29805,3360.6,3360.5,0.75055]
[1735390025545,0.4573,3360.8,3360.7,0.29804]
[1735390025745,1.3431,3360.9,3360.7,0.74537564]
[1735390025941,1.3431,3360.9,3360.8,0.29803]
[1735390028045,1.3431,3360.9,3360.8,4.98119568]
[1735390028952,1.3431,3360.9,3360.8,6.2899667]
[1735390029645,1.3431,3360.9,3360.8,0.29803]
[1735390029950,1.3431,3360.9,3360.6,7.4912033]
[1735390030153,0.29804,3360.8,3360.7,0.29804]
[1735390030350,0.29803,3360.8,3360.7,0.29804]
[1735390030852,0.29803,3360.8,3360.7,4.97826338]
[1735390031758,2.08847564,3360.9,3360.5,5.42559902]
[1735390032054,1.64113,3360.9,3360.8,0.29803]
[1735390032953,0.29804,3360.8,3360.7,0.29804]
[1735390034561,1.64113,3360.9,3360.8,0.29803]
[1735390034749,1.3431,3360.9,3360.8,0.29803]
[1735390036154,1.64113,3360.9,3360.8,0.29803]
[1735390039462,1.3431,3360.9,3360.6,3.2078]
[1735390039666,1.3431,3360.9,3360.8,0.29803]
[1735390040064,1.64113,3360.9,3360.8,0.29803]
[1735390040263,1.3431,3360.9,3360.8,0.29803]
[1735390042155,0.29803,3360.8,3360.7,0.73554]
[1735390042971,1.3431,3360.9,3360.7,0.4375]
[1735390043267,1.64113,3360.9,3360.8,0.29803]
[1735390045167,1.3431,3360.9,3360.8,0.29803]
[1735390046059,0.29803,3360.8,3360.7,0.73553]
[1735390046259,0.29803,3360.8,3360.7,0.29803]
[1735390046462,0.72483,3360.8,3360.7,0.29803]
[1735390046666,0.4268,3360.8,3360.7,0.29803]
[1735390048174,1.3431,3360.9,3360.8,0.29803]
[1735390048964,1.64113,3360.9,3360.8,0.29803]
[1735390052968,1.3431,3360.9,3360.8,0.29803]
[1735390053271,1.64113,3360.9,3360.8,0.29803]
[1735390056375,0.29804,3360.8,3360.7,0.29803]
[1735390056670,1.64113,3360.9,3360.8,0.29803]
[1735390057575,1.3431,3360.9,3360.8,0.29803]
[1735390058471,1.3431,3360.9,3360.8,1.41587906]
[1735390059772,1.3431,3360.9,3360.8,0.67068437]
[1735390060377,1.3431,3360.9,3360.8,0.67067699]
[1735390061173,1.3431,3360.9,3360.8,0.29803]
[1735390063777,1.3431,3360.9,3360.8,1.19583]
[1735390065678,1.3431,3360.9,3360.8,5.87605338]
[1735390069282,1.3431,3360.9,3360.8,4.68022338]
[1735390069283,1.64113,3360.9,3360.8,4.68022338]
[1735390070678,1.64113,3360.9,3360.7,3.2078]
[1735390070679,0.29803,3360.8,3360.7,3.2078]
[1735390070879,0.72413,3360.8,3360.7,3.2078]
[1735390071482,0.29804,3360.7,3360.6,4.68022338]
[1735390071779,0.74194,3360.7,3360.6,4.68022338]
[1735390072082,0.29806,3360.5,3360.4,4.68022338]
[1735390073474,0.29806,3360.5,3360.3,3.50588]
[1735390074376,0.29807,3360.4,3360.3,3.50588]
[1735390074577,0.29807,3360.4,3360.3,0.29808]
[1735390074776,0.29807,3360.4,3360.3,3.50588]
[1735390075281,0.4248,3360.6,3360.3,3.50588]
[1735390075579,0.29807,3360.5,3360.4,0.29807]
[1735390079982,0.29807,3360.5,3360.3,7.88802338]
[1735390080287,0.4449,3360.4,3360.3,8.18609338]
[1735390081089,0.4449,3360.4,3360.3,3.50587]
[1735390081688,0.4449,3360.4,3360.3,4.2511349]
[1735390082181,0.4449,3360.4,3360.3,14.92853532]
[1735390083186,0.4449,3360.4,3360.3,8.93135828]
[1735390083986,0.4449,3360.4,3360.3,5.72355828]
[1735390084189,0.4449,3360.4,3360.3,8.93135828]
[1735390085185,0.74297,3360.4,3360.3,8.93135828]
[1735390085790,0.74297,3360.4,3360.3,5.72355828]
[1735390086290,0.74297,3360.4,3360.3,3.2078]
[1735390092497,0.74297,3360.4,3360.3,3.50588]
[1735390093896,0.74297,3360.4,3360.3,0.29808]
[1735390094398,0.4449,3360.4,3360.2,0.4453]
[1735390094599,0.29808,3360.3,3360.2,0.74338]
[1735390095296,0.29808,3360.3,3360.2,0.29808]
[1735390095604,0.2981,3360.1,3360.0,3.2078]
[1735390095896,0.7452649,3360.1,3359.8,4.68022338]
[1735390096095,0.29813,3359.7,3359.6,4.68022338]
[1735390097399,0.29815,3359.6,3359.4,4.7108149]
[1735390097595,0.74965,3359.6,3359.4,4.7108149]
[1735390097793,0.29815,3359.5,3359.4,3.50596]
[1735390098099,0.73015,3359.5,3359.4,3.50596]
[1735390098894,0.73015,3359.5,3359.4,3.2078]
[1735390100097,0.73015,3359.5,3359.4,3.50596]
[1735390100695,0.73015,3359.5,3359.4,3.2078]
[1735390101097,1.4754149,3359.5,3359.4,3.2078]
[1735390102594,1.1772649,3359.5,3358.9,1.377]
[1735390102801,0.29819,3359.0,3358.9,1.6752]
[1735390103297,0.73959,3359.1,3358.9,1.6752]
[1735390103801,0.29819,3359.0,3358.8,44.0078]
[1735390104000,0.2982,3358.9,3358.8,44.0078]
[1735390104701,0.2982,3358.9,3358.8,3.2078]
[1735390108995,3.9530649,3359.4,3358.8,3.2078]
[1735390109196,0.29818,3359.2,3359.1,0.29818]
[1735390109698,0.29818,3359.2,3359.1,41.09818]
[1735390109897,0.29818,3359.2,3359.1,42.01568]
[1735390110801,0.29818,3359.2,3359.1,1.21568]
[1735390111501,0.29818,3359.2,3359.1,0.9175]
[1735390112799,0.29818,3359.2,3359.1,1.21569]
[1735390113598,0.29818,3359.2,3359.1,0.9175]
[1735390115495,0.29819,3359.0,3358.9,0.2982]
[1735390115701,0.29819,3359.0,3358.9,0.9328]
[1735390116499,0.2982,3358.9,3358.8,3.2078]
[1735390120106,0.2982,3358.9,3358.6,3.2078]
[1735390120402,0.29822,3358.7,3358.6,3.2078]
[1735390121807,0.2982,3359.0,3358.9,0.2982]
[1735390122003,3.662,3359.4,3359.1,0.29818]
[1735390122214,0.29817,3359.3,3359.2,1.3434]
[1735390122803,0.4542,3359.4,3359.0,3.2078]
[1735390123004,0.29821,3358.9,3358.8,0.29821]
[1735390123505,0.29821,3358.9,3358.7,0.9046]
[1735390123506,0.4542,3359.4,3358.7,0.9046]
[1735390123705,0.2982,3359.0,3358.9,0.2982]
[1735390124301,0.29819,3359.1,3359.0,0.29819]
[1735390124607,0.29819,3359.1,3358.9,0.2982]
[1735390125705,0.29819,3359.1,3359.0,0.29819]
[1735390126499,0.29819,3359.0,3358.9,0.2982]